fUST/lending_fUST_20240413
["ID","MTS","AMOUNT","RATE_DAILY","PERIOD"]
[322360893,1712967039344,-151.0,0.00037875,2]
[322360895,1712967039354,-151.0,0.00037875,2]
[322360897,1712967039363,-151.0,0.00037875,2]
[322360899,1712967039372,-268.832785,0.00037875,2]
[322360901,1712967039382,-326.622292,0.00037875,2]
[322360903,1712967039391,-326.622292,0.00037875,2]
[322360905,1712967039399,-326.622292,0.00037875,2]
[322360907,1712967039409,-326.622292,0.00037875,2]
[322360909,1712967039418,-326.622292,0.00037875,2]
[322360911,1712967039427,-326.622292,0.00037875,2]
[322360913,1712967039437,-326.622292,0.00037875,2]
[322360915,1712967039446,-326.622292,0.00037875,2]
[322360917,1712967039455,-151.0,0.00037875,2]
[322360919,1712967039466,-151.0,0.00037875,2]
[322360921,1712967039475,-151.0,0.00037875,2]
[322360923,1712967039485,-151.0,0.00037875,2]
[322360925,1712967039494,-151.0,0.00037875,2]
[322360927,1712967039503,-151.0,0.00037875,2]
[322360929,1712967039514,-151.0,0.00037875,2]
[322360931,1712967039523,-151.0,0.00037875,2]
[322360933,1712967039533,-151.0,0.00037875,2]
[322360935,1712967039543,-151.0,0.00037875,2]
[322360936,1712967039552,-151.0,0.00037875,2]
[322360938,1712967039561,-153.038156,0.00037875,2]
[322360940,1712967039571,-151.0,0.00037875,2]
[322360942,1712967039580,-206.709278,0.00037875,2]
[322360944,1712967039589,-151.0,0.00037875,2]
[322360946,1712967039598,-151.0,0.00037875,2]
[322360948,1712967039607,-151.0,0.00037875,2]
[322360950,1712967039616,-151.0,0.00037875,2]
[322360952,1712967039626,-151.0,0.00037875,2]
[322360954,1712967039635,-151.0,0.00037875,2]
[322360956,1712967039644,-151.0,0.00037875,2]
[322360958,1712967039653,-173.196543,0.00037875,2]
[322360960,1712967039662,-369.0,0.00037875,2]
[322360962,1712967039671,-369.0,0.00037875,2]
[322360964,1712967039680,-369.0,0.00037875,2]
[322360966,1712967039689,-369.0,0.00037875,2]
[322360968,1712967039699,-369.0,0.00037875,2]
[322360971,1712967039708,-369.0,0.00037875,2]
[322360974,1712967039718,-369.0,0.00037875,2]
[322360976,1712967039726,-369.0,0.00037875,2]
[322360978,1712967039735,-151.0,0.00037875,2]
[322360979,1712967039744,-151.0,0.00037875,2]
[322360981,1712967039753,-151.0,0.00037875,2]
[322360983,1712967039762,-151.0,0.00037875,2]
[322360986,1712967039771,-151.0,0.00037875,2]
[322360988,1712967039781,-151.0,0.00037875,2]
[322360990,1712967039790,-151.0,0.00037875,2]
[322360992,1712967039799,-151.0,0.00037875,2]
[322360994,1712967039809,-151.727212,0.00037875,2]
[322360996,1712967039818,-151.0,0.00037875,2]
[322360998,1712967039827,-151.0,0.00037875,2]
[322361000,1712967039836,-151.0,0.00037875,2]
[322361002,1712967039845,-162.714672,0.00037875,2]
[322361004,1712967039855,-151.0,0.00037875,2]
[322361017,1712967039969,-151.0,0.00037875,2]
[322361019,1712967039979,-151.0,0.00037875,2]
[322361021,1712967039988,-1774.900844,0.00037875,2]
[322361023,1712967039998,-1774.900844,0.00037875,2]
[322361025,1712967040007,-1774.900844,0.00037875,2]
[322361027,1712967040016,-1774.900844,0.00037875,2]
[322361029,1712967040026,-1774.900844,0.00037875,2]
[322361031,1712967040035,-1774.900844,0.00037875,2]
[322361033,1712967040045,-1774.900844,0.00037875,2]
[322361036,1712967040054,-1774.900844,0.00037875,2]
[322361037,1712967040064,-151.0,0.00037875,2]
[322361039,1712967040072,-151.0,0.00037875,2]
[322361041,1712967040082,-151.0,0.00037875,2]
[322361043,1712967040092,-151.0,0.00037875,2]
[322361045,1712967040102,-151.0,0.00037876,2]
[322361047,1712967040111,-151.0,0.00037876,2]
[322361049,1712967040120,-153.243674,0.00037876,2]
[322361051,1712967040129,-239.46256,0.00037876,2]
[322361053,1712967040138,-239.46256,0.00037876,2]
[322361055,1712967040147,-280.740356,0.00037876,2]
[322361057,1712967040156,-239.46256,0.00037876,2]
[322361059,1712967040166,-239.46256,0.00037876,2]
[322361061,1712967040175,-239.46256,0.00037876,2]
[322361063,1712967040184,-239.46256,0.00037876,2]
[322361065,1712967040194,-239.46256,0.00037876,2]
[322361067,1712967040205,-239.46256,0.00037876,2]
[322361069,1712967040215,-1823.306238,0.00037876,2]
[322361071,1712967040225,-1823.306238,0.00037876,2]
[322361073,1712967040234,-1823.306238,0.00037876,2]
[322361075,1712967040244,-1823.306238,0.00037876,2]
[322361077,1712967040253,-1823.306238,0.00037876,2]
[322361079,1712967040262,-1823.306238,0.00037876,2]
[322361081,1712967040270,-1823.306238,0.00037876,2]
[322361083,1712967040279,-1823.306238,0.00037876,2]
[322361085,1712967040289,-151.000002,0.00037876,2]
[322361087,1712967040298,-151.0,0.00037876,2]
[322361089,1712967040307,-151.0,0.00037876,2]
[322361091,1712967040316,-151.0,0.00037876,2]
[322361093,1712967040326,-151.0,0.00037876,2]
[322361095,1712967040335,-151.0,0.00037876,2]
[322361096,1712967040345,-151.0,0.00037876,2]
[322361098,1712967040354,-151.0,0.00037876,2]
[322361100,1712967040364,-151.0,0.00037876,2]
[322361101,1712967040373,-1945708.40614176,0.00037876,60]
[322361102,1712967040404,-550.64212302,0.00037876,60]
[322361103,1712967040416,-261.37829051,0.00037876,60]
[322361104,1712967040427,-312.0,0.00037876,60]
[322361427,1712967043553,-18834.60702621,0.00037876,60]
[322361429,1712967043563,-565.23632466,0.00037876,30]
[322361431,1712967043572,-941.87171064,0.00037876,120]
[322361433,1712967043581,-503.21021558,0.00037876,30]
[322361435,1712967043590,-10142.52378614,0.00037876,2]
[322369209,1712968233468,-161.66972791,0.0002739,2]
[322369211,1712968233478,-384.06506966,0.00027391,2]
[322369213,1712968233487,-261.588021,0.00027397,2]
[322369215,1712968233496,-215.975632,0.00027397,2]
[322369217,1712968233506,-261.588021,0.00033165,2]
[322369219,1712968233515,-215.975632,0.00033165,2]
[322369221,1712968233525,-186.071994,0.00033659,2]
[322369223,1712968233534,-400.0,0.00034453,2]
[322369225,1712968233544,-24900.0,0.00034454,2]
[322369227,1712968233554,-1197.184764,0.00035616,120]
[322369229,1712968233563,-163.185819,0.00035702,2]
[322369231,1712968233573,-227.69568542,0.00035776,2]
[322369233,1712968233582,-300.3273481,0.00036156,2]
[322369235,1712968233591,-202.8732917,0.00036156,2]
[322369237,1712968233601,-1334.09376678,0.00036933,9]
[322369239,1712968233611,-1334.12046441,0.00036933,9]
[322369241,1712968233619,-2044.91142934,0.00037,2]
[322369243,1712968233629,-21490.97219553,0.00037121,4]
[322369245,1712968233641,-6696.0,0.00037121,4]
[322369261,1712968238514,-936.75846453,0.00037121,4]
[322369262,1712968238524,-7306.29999807,0.00037122,2]
[322369263,1712968238533,-10943.33073291,0.00037838,5]
[322369264,1712968238543,-228.0,0.00037846,35]
[322369265,1712968238552,-230.0,0.00037848,35]
[322369266,1712968238561,-228.0,0.00037856,35]
[322369267,1712968238571,-230.0,0.00037858,35]
[322369268,1712968238580,-228.0,0.00037866,35]
[322369269,1712968238590,-230.0,0.00037868,35]
[322369270,1712968238599,-595.87069301,0.00037874,2]
[322369271,1712968238608,-875.47790871,0.00037874,4]
[322369272,1712968238618,-177.27579601,0.00037875,4]
[322369273,1712968238627,-263.61360044,0.00037875,4]
[322369275,1712968238637,-307.0763126,0.00037875,4]
[322369276,1712968238647,-936.73565596,0.00037875,4]
[322369278,1712968238657,-1931.90571888,0.00037875,4]
[322369279,1712968238667,-2191.919775,0.00037876,4]
[322369281,1712968238676,-1013.79857773,0.00037876,4]
[322369282,1712968238687,-160.0,0.00037877,10]
[322369284,1712968238698,-160.0,0.00037877,10]
[322369286,1712968238711,-183.20628721,0.00037877,10]
[322369287,1712968238722,-125.56396262,0.0003788,4]
[322369289,1712968238732,-201.16388838,0.0003788,30]
[322369290,1712968238743,-196.46,0.00037886,2]
[322369291,1712968238754,-196.46,0.00037886,2]
[322369292,1712968238764,-196.46,0.00037886,2]
[322369293,1712968238775,-196.46,0.00037886,2]
[322369294,1712968238785,-196.46,0.00037886,2]
[322369295,1712968238795,-196.46,0.00037886,2]
[322369296,1712968238806,-196.46,0.00037886,2]
[322369297,1712968238816,-196.46,0.00037886,2]
[322369298,1712968238826,-196.46,0.00037886,2]
[322369299,1712968238835,-196.46,0.00037886,2]
[322369300,1712968238846,-62033.1384993,0.00037887,5]
[322369301,1712968238855,-77612.44836273,0.00037887,2]
[322369302,1712968238865,-19305.08810574,0.00037887,2]
[322369303,1712968238874,-169342.25098518,0.00037887,2]
[322369304,1712968238884,-152173.33327013,0.00037887,2]
[322369305,1712968238894,-779.78428984,0.00037887,2]
[322369306,1712968238904,-1188.73012933,0.00037887,14]
[322369307,1712968238914,-162.88678665,0.00037887,120]
[322369308,1712968238924,-224.04878038,0.00037887,10]
[322369309,1712968238933,-285.9357454,0.00037887,2]
[322369310,1712968238943,-4079.95635994,0.00037887,2]
[322369311,1712968238952,-314.89606993,0.00037887,2]
[322369313,1712968238963,-1154.27863175,0.00037887,30]
[322369314,1712968238974,-280.5987415,0.00037887,2]
[322369315,1712968238983,-12999.999999,0.00037887,2]
[322369316,1712968238992,-150.0,0.00037887,2]
[322369317,1712968239001,-9921.73794493,0.00037887,2]
[322369318,1712968239011,-2702.83483731,0.00037887,2]
[322369319,1712968239020,-70343.23826767,0.00037887,32]
[322369320,1712968239030,-151.71050555,0.00037887,2]
[322369321,1712968239039,-197.22992668,0.00037887,30]
[322369322,1712968239049,-8546.72816983,0.00037887,31]
[322369323,1712968239058,-152.51300818,0.00037887,30]
[322369324,1712968239067,-27857.01594341,0.00037887,2]
[322369325,1712968239077,-507.67588246,0.00037887,30]
[322369326,1712968239086,-468.11714012,0.00037887,2]
[322369327,1712968239095,-429.89113363,0.00037887,2]
[322369328,1712968239104,-28545.11163017,0.00037887,2]
[322369329,1712968239113,-3005.79519124,0.00037887,2]
[322369330,1712968239123,-806.17864922,0.00037887,2]
[322369331,1712968239132,-327.16504891,0.00037887,30]
[322369332,1712968239141,-1003.04606161,0.00037887,2]
[322369333,1712968239150,-121231.13020168,0.00037887,2]
[322369334,1712968239159,-1001.62219754,0.00037887,2]
[322369335,1712968239168,-2726.83185342,0.00037887,2]
[322369336,1712968239177,-1198154.83695046,0.00037887,60]
[322369631,1712968243847,-57870.26185864,0.00037887,60]
[322369633,1712968243859,-42947.31504058,0.00037887,60]
[322369635,1712968243870,-7689.33525124,0.00037887,60]
[322369638,1712968243884,-2147.07074496,0.00037887,60]
[322370901,1712969432659,-953.07892508,0.00027265,2]
[322370903,1712969432668,-161.66972791,0.00027266,2]
[322370905,1712969432678,-200.09790129,0.00027284,2]
[322370907,1712969432687,-1237.19076672,0.00027285,2]
[322371494,1712969439262,-620.77796445,0.00025185,2]
[322371497,1712969439272,-4782.82923328,0.00027285,2]
[322371499,1712969439282,-159.994779,0.00027397,2]
[322371501,1712969439291,-163.605352,0.00027397,2]
[322371503,1712969439301,-163.696079,0.00027397,2]
[322371505,1712969439310,-620.77796445,0.00030185,2]
[322371507,1712969439321,-400.0,0.00030458,2]
[322371509,1712969439331,-163.185819,0.00030459,2]
[322371511,1712969439340,-24900.0,0.00031822,2]
[322371513,1712969439349,-560.0,0.00033504,2]
[322371515,1712969439358,-11343.4921802,0.00033907,2]
[322371517,1712969439368,-620.77796445,0.00035185,2]
[322371519,1712969439377,-163.696079,0.00035225,2]
[322371521,1712969439386,-897.888573,0.00035616,120]
[322371522,1712969439395,-1334.12046441,0.0003619,9]
[322371525,1712969439405,-783.0,0.00036855,2]
[322371527,1712969439414,-2044.91142934,0.00037,2]
[322371529,1712969439423,-10544.73878852,0.00037129,2]
[322371531,1712969439433,-3108.61669448,0.00037776,7]
[322371533,1712969439442,-306.78991651,0.000378,120]
[322371534,1712969439454,-10943.33073291,0.00037849,5]
[322371536,1712969439466,-2358.21680548,0.00037876,4]
[322371539,1712969439475,-958.42085924,0.00037885,4]
[322371541,1712969439484,-1931.90571888,0.00037885,4]
[322371542,1712969439494,-201.16388838,0.00037885,30]
[322371544,1712969439505,-307.0763126,0.00037885,4]
[322371546,1712969439514,-177.27579601,0.00037885,4]
[322371549,1712969439524,-595.87069301,0.00037885,2]
[322371550,1712969439533,-875.47790871,0.00037885,4]
[322371553,1712969439543,-263.61360044,0.00037885,4]
[322371555,1712969439552,-936.73565596,0.00037885,4]
[322371557,1712969439561,-525.07637197,0.00037886,4]
[322371559,1712969439573,-2040.52223095,0.00037887,30]
[322371561,1712969439584,-1013.79857773,0.00037887,4]
[322371563,1712969439593,-2191.919775,0.00037887,4]
[322371565,1712969439602,-160.0,0.00037888,10]
[322371567,1712969439611,-160.0,0.00037888,10]
[322371569,1712969439620,-196.46,0.00037889,2]
[322371571,1712969439629,-196.46,0.00037889,2]
[322371572,1712969439638,-196.46,0.00037889,2]
[322371575,1712969439650,-196.46,0.00037889,2]
[322371577,1712969439659,-196.46,0.00037889,2]
[322371579,1712969439668,-196.46,0.00037889,2]
[322371581,1712969439677,-196.46,0.00037889,2]
[322371583,1712969439686,-196.46,0.00037889,2]
[322371585,1712969439695,-196.46,0.00037889,2]
[322371587,1712969439704,-196.46,0.00037889,2]
[322371589,1712969439713,-62033.1384993,0.00037889,5]
[322371591,1712969439722,-1177526.54827376,0.0003789,60]
[322371593,1712969439731,-36786.99985839,0.0003789,2]
[322371595,1712969439740,-661.52160483,0.0003789,2]
[322371597,1712969439750,-291258.16106968,0.0003789,120]
[322371598,1712969439761,-937.96769362,0.0003789,2]
[322371600,1712969439770,-152.52252607,0.0003789,24]
[322371602,1712969439779,-152.52252607,0.0003789,24]
[322371619,1712969439924,-975.14386043,0.0003789,2]
[322371621,1712969439934,-153.0,0.0003789,2]
[322371623,1712969439944,-153.0,0.0003789,2]
[322371625,1712969439953,-153.0,0.0003789,2]
[322371627,1712969439962,-153.0,0.0003789,2]
[322371629,1712969439971,-153.0,0.0003789,2]
[322371631,1712969439980,-153.0,0.0003789,2]
[322371633,1712969439989,-153.0,0.0003789,2]
[322371635,1712969439998,-153.0,0.0003789,2]
[322371638,1712969440008,-153.0,0.0003789,2]
[322371641,1712969440017,-153.0,0.0003789,2]
[322371644,1712969440026,-153.0,0.0003789,2]
[322371646,1712969440035,-153.0,0.0003789,2]
[322371648,1712969440044,-153.0,0.0003789,2]
[322371650,1712969440053,-153.0,0.0003789,2]
[322371652,1712969440062,-153.0,0.0003789,2]
[322371654,1712969440071,-153.0,0.0003789,2]
[322371656,1712969440079,-153.0,0.0003789,2]
[322371658,1712969440088,-153.0,0.0003789,2]
[322371660,1712969440097,-153.0,0.0003789,2]
[322371662,1712969440106,-153.0,0.0003789,2]
[322371666,1712969440115,-153.0,0.0003789,2]
[322371670,1712969440124,-153.0,0.0003789,2]
[322371673,1712969440134,-153.0,0.0003789,2]
[322371676,1712969440143,-153.0,0.0003789,2]
[322371679,1712969440152,-153.0,0.0003789,2]
[322371682,1712969440161,-153.0,0.0003789,2]
[322371685,1712969440174,-153.0,0.0003789,2]
[322371687,1712969440183,-153.0,0.0003789,2]
[322371690,1712969440192,-153.0,0.0003789,2]
[322371693,1712969440202,-153.0,0.0003789,2]
[322371695,1712969440211,-153.0,0.0003789,2]
[322371698,1712969440220,-153.0,0.0003789,2]
[322371701,1712969440229,-153.0,0.0003789,2]
[322371704,1712969440238,-153.0,0.0003789,2]
[322371706,1712969440249,-153.0,0.0003789,2]
[322371709,1712969440260,-153.0,0.0003789,2]
[322371712,1712969440270,-153.0,0.0003789,2]
[322371715,1712969440279,-153.0,0.0003789,2]
[322371718,1712969440288,-153.0,0.0003789,2]
[322371720,1712969440297,-153.0,0.0003789,2]
[322371722,1712969440307,-153.0,0.0003789,2]
[322371724,1712969440316,-153.0,0.0003789,2]
[322371726,1712969440325,-153.0,0.0003789,2]
[322371728,1712969440335,-153.0,0.0003789,2]
[322371730,1712969440344,-153.0,0.0003789,2]
[322371732,1712969440353,-153.0,0.0003789,2]
[322371734,1712969440362,-153.0,0.0003789,2]
[322371736,1712969440371,-153.0,0.0003789,2]
[322371738,1712969440380,-153.0,0.0003789,2]
[322371740,1712969440389,-153.0,0.0003789,2]
[322371742,1712969440398,-153.0,0.0003789,2]
[322371744,1712969440407,-153.0,0.0003789,2]
[322371746,1712969440417,-153.0,0.0003789,2]
[322371747,1712969440427,-153.0,0.0003789,2]
[322371750,1712969440436,-153.0,0.0003789,2]
[322371752,1712969440445,-232.8651684,0.0003789,2]
[322371754,1712969440454,-10026.92839032,0.00038,2]
[322371756,1712969440463,-268.51910599,0.00038195,4]
[322371758,1712969440472,-367.32528232,0.00038195,4]
[322371759,1712969440481,-769.18878098,0.00038195,4]
[322371761,1712969440490,-1341.98960258,0.00038195,4]
[322371763,1712969440499,-514.00192393,0.00038195,4]
[322371766,1712969440511,-1672.13172717,0.00038195,4]
[322371767,1712969440520,-157.434215,0.00038195,4]
[322371769,1712969440529,-347.44873531,0.00038195,4]
[322371772,1712969440540,-198.49468448,0.00038195,4]
[322371774,1712969440549,-416.48899018,0.00038195,4]
[322371776,1712969440558,-1719.24667233,0.00038195,4]
[322371777,1712969440567,-517.06713302,0.00038195,4]
[322371779,1712969440576,-220.95315523,0.00038195,4]
[322371781,1712969440585,-606.12975818,0.00038196,4]
[322371783,1712969440594,-175.52503549,0.00038196,7]
[322371785,1712969440603,-309.6747927,0.00038196,4]
[322371787,1712969440612,-207036.3903333,0.000382,2]
[322371789,1712969440621,-168.645527,0.000382,2]
[322371792,1712969440630,-155.0,0.00038249,4]
[322371794,1712969440640,-384.54198154,0.0003825,2]
[322371796,1712969440650,-211.24192726,0.0003825,4]
[322371798,1712969440659,-1891.95020485,0.00038254,4]
[322371799,1712969440669,-500.0,0.00038356,7]
[322371801,1712969440678,-500.0,0.00038356,7]
[322371803,1712969440688,-500.0,0.00038356,7]
[322371805,1712969440697,-500.0,0.00038356,7]
[322371808,1712969440706,-515.16555868,0.00038356,7]
[322371810,1712969440716,-500.0,0.00038356,7]
[322371812,1712969440725,-500.0,0.00038356,7]
[322371814,1712969440734,-500.0,0.00038356,7]
[322371816,1712969440743,-500.0,0.00038356,7]
[322371818,1712969440755,-500.0,0.00038356,7]
[322371820,1712969440764,-500.0,0.00038356,7]
[322371822,1712969440773,-1334.12046441,0.00038361,9]
[322371824,1712969440782,-261.588021,0.00038933,2]
[322371826,1712969440791,-215.975632,0.00038933,2]
[322371828,1712969440800,-19684.33956991,0.00038999,3]
[322371830,1712969440810,-2395.11292189,0.00039199,7]
[322371832,1712969440820,-200.0,0.00039199,120]
[322371834,1712969440829,-159.994779,0.00039574,2]
[322371836,1712969440838,-251.11,0.0003997,35]
[322371838,1712969440847,-275.4,0.0003997,35]
[322371840,1712969440856,-228.0,0.0003997,35]
[322371843,1712969440877,-2612.0,0.0003997,35]
[322371845,1712969440887,-256.0,0.0003997,35]
[322371847,1712969440897,-150.5,0.0003997,35]
[322371849,1712969440907,-150.5,0.0003998,35]
[322371851,1712969440916,-150.5,0.0003998,35]
[322371854,1712969440927,-228.0,0.0003998,35]
[322371856,1712969440937,-2612.0,0.0003998,35]
[322371858,1712969440947,-256.0,0.0003998,35]
[322371860,1712969440956,-150.5,0.0003998,35]
[322371862,1712969440966,-150.5,0.0003999,35]
[322371864,1712969440975,-290.79,0.0003999,35]
[322371866,1712969440985,-150.5,0.0003999,35]
[322371868,1712969440995,-228.0,0.0003999,35]
[322371870,1712969441005,-2612.0,0.0003999,35]
[322371872,1712969441014,-256.0,0.0003999,35]
[322371874,1712969441023,-150.5,0.0003999,35]
[322371876,1712969441033,-183.20628721,0.00039999,30]
[322371878,1712969441052,-1406.99083387,0.0004,4]
[322371880,1712969441094,-400.000001,0.0004,2]
[322371882,1712969441105,-357.65520002,0.0004,2]
[322371884,1712969441115,-4486.44593401,0.0004,2]
[322371886,1712969441124,-4988.0,0.0004,2]
[322371888,1712969441134,-3035.30605118,0.0004,15]
[322371890,1712969441145,-47894.00970803,0.0004,15]
[322371893,1712969441162,-989.20797147,0.0004,15]
[322371895,1712969441185,-6815.39046898,0.0004,15]
[322371898,1712969441197,-536.08826265,0.0004,15]
[322372127,1712969443282,-889.12561474,0.0004,15]
[322372155,1712969443993,-4090.02736355,0.0004,15]
[322372156,1712969444142,-1199.98704906,0.0004,15]
[322372157,1712969444154,-489.71842519,0.0004,15]
[322373171,1712970637941,-161.66972791,0.00027387,2]
[322373172,1712970637951,-200.09790129,0.00027387,2]
[322373173,1712970637961,-254.227741,0.00027397,2]
[322373174,1712970637972,-254.227741,0.00033165,2]
[322373175,1712970637984,-386.0,0.0003599,120]
[322373176,1712970637993,-500.729232,0.0003599,120]
[322373178,1712970638004,-673.416429,0.00035998,120]
[322373180,1712970638013,-400.0,0.00035998,2]
[322373182,1712970638023,-2863.57414242,0.00035999,2]
[322373184,1712970638033,-24900.0,0.00036,2]
[322373186,1712970638043,-370.35002889,0.000369,8]
[322373188,1712970638053,-500.0,0.00037,7]
[322373189,1712970638063,-68144.0,0.00037,2]
[322373190,1712970638072,-2044.91142934,0.00037,2]
[322373191,1712970638081,-150.5,0.0003779,35]
[322373192,1712970638091,-248.0,0.0003779,35]
[322373193,1712970638100,-230.0,0.0003779,35]
[322373194,1712970638110,-2612.0,0.0003779,35]
[322373195,1712970638120,-228.0,0.0003779,35]
[322373196,1712970638129,-251.11,0.0003779,35]
[322373197,1712970638139,-275.4,0.0003779,35]
[322373198,1712970638148,-150.5,0.000378,35]
[322373199,1712970638158,-248.0,0.000378,35]
[322373200,1712970638167,-230.0,0.000378,35]
[322373201,1712970638176,-2612.0,0.000378,35]
[322373202,1712970638185,-228.0,0.000378,35]
[322373203,1712970638195,-150.5,0.000378,35]
[322373204,1712970638204,-150.5,0.000378,35]
[322373205,1712970638213,-150.5,0.0003781,35]
[322373206,1712970638222,-248.0,0.0003781,35]
[322373207,1712970638232,-230.0,0.0003781,35]
[322373208,1712970638241,-2612.0,0.0003781,35]
[322373209,1712970638250,-228.0,0.0003781,35]
[322373210,1712970638258,-150.5,0.0003781,35]
[322373211,1712970638267,-290.79,0.0003781,35]
[322373212,1712970638276,-150.5,0.0003781,35]
[322373213,1712970638286,-183.20628721,0.00037817,10]
[322373214,1712970638295,-196.46,0.00037817,2]
[322373215,1712970638304,-196.46,0.00037817,2]
[322373216,1712970638314,-196.46,0.00037817,2]
[322373217,1712970638323,-196.46,0.00037817,2]
[322373218,1712970638332,-196.46,0.00037817,2]
[322373219,1712970638341,-196.46,0.00037817,2]
[322373220,1712970638350,-196.46,0.00037817,2]
[322373221,1712970638359,-196.46,0.00037817,2]
[322373222,1712970638368,-196.46,0.00037817,2]
[322373223,1712970638377,-196.46,0.00037817,2]
[322373224,1712970638386,-62033.1384993,0.00037817,5]
[322373225,1712970638395,-1764341.67515703,0.00037818,60]
[322373525,1712970642320,-156.87945876,0.00027386,2]
[322373527,1712970642330,-505.062321,0.00035616,120]
[322373529,1712970642340,-4738.59310442,0.00035989,4]
[322373531,1712970642349,-18655.94468182,0.00037818,60]
[322373621,1712970643043,-407.92907371,0.00037818,60]
[322373623,1712970643055,-4092.52783364,0.00037818,60]
[322380878,1712971838229,-300.0,0.00027363,2]
[322380879,1712971838239,-1494.36779976,0.00027363,2]
[322380880,1712971838250,-200.09790129,0.00027364,2]
[322380881,1712971838259,-3738.27761337,0.00027364,2]
[322380883,1712971838268,-240.87294261,0.00027364,2]
[322380885,1712971838277,-3526.86715343,0.00027365,2]
[322380886,1712971838286,-183.579287,0.00027397,2]
[322380887,1712971838296,-159.994779,0.00027397,2]
[322380888,1712971838304,-163.605352,0.00027397,2]
[322380890,1712971838314,-291.52663962,0.00028362,2]
[322380892,1712971838323,-420.0,0.00030099,2]
[322380894,1712971838332,-258.19930844,0.00030252,4]
[322380895,1712971838341,-24900.0,0.00031158,2]
[322380896,1712971838350,-190.9330142,0.00032,4]
[322380897,1712971838359,-587.0,0.00033109,2]
[322380898,1712971838368,-183.579287,0.00033165,2]
[322380899,1712971838377,-156.34222761,0.00034036,4]
[322380900,1712971838387,-1000.0,0.00034413,4]
[322380901,1712971838396,-234.47543997,0.0003488,120]
[322380902,1712971838405,-500.0,0.00035,120]
[322380903,1712971838415,-378.79674,0.00035616,120]
[322380904,1712971838426,-501.0,0.0003589,2]
[322380905,1712971838436,-156.05437893,0.00035928,4]
[322380906,1712971838445,-501.0,0.00036,2]
[322380907,1712971838454,-823.0,0.0003642,2]
[322380908,1712971838463,-1334.12046441,0.00036876,9]
[322380909,1712971838472,-501.0,0.00037397,2]
[322380910,1712971838482,-1000.0,0.000375,2]
[322380911,1712971838491,-4191.11830321,0.000375,2]
[322380912,1712971838502,-5743.86906997,0.00037715,2]
[322380913,1712971838511,-205.0,0.00037785,35]
[322380914,1712971838520,-150.5,0.00037785,35]
[322380915,1712971838530,-250.0,0.00037788,35]
[322380916,1712971838538,-2351.0,0.00037788,35]
[322380917,1712971838548,-205.0,0.00037795,35]
[322380918,1712971838558,-150.5,0.00037795,35]
[322380919,1712971838567,-250.0,0.00037798,35]
[322380920,1712971838576,-2351.0,0.00037798,35]
[322380921,1712971838586,-205.0,0.00037805,35]
[322380922,1712971838595,-150.5,0.00037805,35]
[322380923,1712971838604,-250.0,0.00037808,35]
[322380924,1712971838614,-2351.0,0.00037808,35]
[322380925,1712971838623,-1634.36489768,0.00037814,4]
[322380926,1712971838632,-500.0,0.00037815,2]
[322380927,1712971838642,-188.75485878,0.00037815,2]
[322380928,1712971838650,-899.04304398,0.00037815,4]
[322380929,1712971838659,-467.23792428,0.00037815,4]
[322380930,1712971838669,-465.00692251,0.00037816,4]
[322380931,1712971838678,-2184.71959317,0.00037816,2]
[322380932,1712971838687,-271.76761196,0.00037817,4]
[322380933,1712971838696,-1013.79857773,0.00037818,4]
[322380934,1712971838705,-2191.919775,0.00037818,4]
[322380935,1712971838715,-191.15896063,0.00037818,60]
[322380936,1712971838724,-211.24192726,0.00037818,4]